[Event "Early-Titled-Tuesday-Blitz-March-19-2024"]
[Site "Chess.com"]
[Date "2024.03.19"]
[Round "3"]
[White "Tssunami"]
[Black "Vaibhavraut99"]
[Result "0-1"]
[WhiteElo "2489"]
[BlackElo "2720"]
[TimeControl "180+1"]
[EndTime "8:30:18 PDT"]
[Termination "Vaibhavraut99 won by resignation"]

1. d4 {[%clk 0:02:59.2]} 1... Nf6 {[%clk 0:02:59.7]} 2. Nf3 {[%clk 0:02:57]}
2... e6 {[%clk 0:02:59.3]} 3. Bf4 {[%clk 0:02:55.8]} 3... b6 {[%clk 0:02:58]} 4.
e3 {[%clk 0:02:54.7]} 4... Bb7 {[%clk 0:02:57.9]} 5. h3 {[%clk 0:02:54.4]} 5...
Be7 {[%clk 0:02:45.1]} 6. Bd3 {[%clk 0:02:53.2]} 6... O-O {[%clk 0:02:44.7]} 7.
O-O {[%clk 0:02:51.6]} 7... Re8 {[%clk 0:02:44]} 8. Bh2 {[%clk 0:02:50.2]} 8...
Bf8 {[%clk 0:02:40.4]} 9. Nbd2 {[%clk 0:02:48.8]} 9... d5 {[%clk 0:02:34.4]} 10.
Ne5 {[%clk 0:02:47.7]} 10... Nbd7 {[%clk 0:02:30.5]} 11. f4 {[%clk 0:02:47.2]}
11... Ne4 {[%clk 0:02:27.6]} 12. Ndf3 {[%clk 0:02:32.7]} 12... f6 {[%clk
0:02:22.2]} 13. Ng4 {[%clk 0:02:32.2]} 13... c5 {[%clk 0:02:13]} 14. c3 {[%clk
0:02:31]} 14... Bd6 {[%clk 0:02:00.7]} 15. Qe1 {[%clk 0:02:28.5]} 15... Qe7
{[%clk 0:01:58.4]} 16. Rd1 {[%clk 0:02:24.2]} 16... a5 {[%clk 0:01:56.5]} 17.
Qh4 {[%clk 0:02:20.8]} 17... c4 {[%clk 0:01:42.5]} 18. Bb1 {[%clk 0:02:13]}
18... b5 {[%clk 0:01:33.5]} 19. Nd2 {[%clk 0:02:04.5]} 19... f5 {[%clk
0:01:10.1]} 20. Qxe7 {[%clk 0:02:04.1]} 20... Bxe7 {[%clk 0:01:07.7]} 21. Ne5
{[%clk 0:02:03]} 21... Nxe5 {[%clk 0:01:04.2]} 22. fxe5 {[%clk 0:02:02.9]} 22...
Nxd2 {[%clk 0:01:02.2]} 23. Rxd2 {[%clk 0:02:02.5]} 23... b4 {[%clk 0:00:55]}
24. g4 {[%clk 0:02:02.5]} 24... g6 {[%clk 0:00:53]} 25. Rg2 {[%clk 0:02:01.3]}
25... Kf7 {[%clk 0:00:48.8]} 26. Bf4 {[%clk 0:01:33.4]} 26... h5 {[%clk
0:00:37]} 27. gxh5 {[%clk 0:01:00.1]} 27... gxh5 {[%clk 0:00:37]} 28. Kh2 {[%clk
0:00:59.5]} 28... Rg8 {[%clk 0:00:35.7]} 29. Rfg1 {[%clk 0:00:57.7]} 29... Rxg2+
{[%clk 0:00:29.7]} 30. Rxg2 {[%clk 0:00:58.6]} 30... Rg8 {[%clk 0:00:23.4]} 31.
cxb4 {[%clk 0:00:51.2]} 31... Bxb4 {[%clk 0:00:18.5]} 32. Rxg8 {[%clk
0:00:50.6]} 32... Kxg8 {[%clk 0:00:19.4]} 33. Kg2 {[%clk 0:00:49.3]} 33... Bd2
{[%clk 0:00:14]} 34. Kf3 {[%clk 0:00:44]} 34... Ba6 {[%clk 0:00:10.5]} 35. Ke2
{[%clk 0:00:36]} 35... Bc1 {[%clk 0:00:10.3]} 36. Kd1 {[%clk 0:00:29.4]} 36...
Bxb2 {[%clk 0:00:09.8]} 37. Bc2 {[%clk 0:00:27]} 37... Bb5 {[%clk 0:00:07.6]}
38. Ke2 {[%clk 0:00:24.2]} 38... c3+ {[%clk 0:00:06.8]} 39. Kf3 {[%clk
0:00:22.1]} 39... a4 {[%clk 0:00:03.8]} 40. Bg3 {[%clk 0:00:17.7]} 40... a3
{[%clk 0:00:03.8]} 41. Be1 {[%clk 0:00:17.4]} 41... Bc4 {[%clk 0:00:04]} 42. Bb1
{[%clk 0:00:17.8]} 42... Kf7 {[%clk 0:00:03.3]} 43. Kg3 {[%clk 0:00:16.8]} 43...
Kg6 {[%clk 0:00:02.2]} 44. Kh4 {[%clk 0:00:17.1]} 44... Bc1 {[%clk 0:00:02.8]}
45. Bxc3 {[%clk 0:00:16.5]} 45... Bxe3 {[%clk 0:00:03.1]} 46. Kg3 {[%clk
0:00:17.2]} 46... h4+ {[%clk 0:00:02.8]} 47. Kf3 {[%clk 0:00:17.4]} 47... Bc1
{[%clk 0:00:02.8]} 48. Bb4 {[%clk 0:00:17.3]} 48... Bf1 {[%clk 0:00:03.1]} 49.
Be1 {[%clk 0:00:15.9]} 49... Kh5 {[%clk 0:00:02.8]} 50. Bc2 {[%clk 0:00:14.9]}
50... Bxh3 {[%clk 0:00:02.9]} 51. Bd1 {[%clk 0:00:15.5]} 51... Bg4+ {[%clk
0:00:03]} 52. Kg2 {[%clk 0:00:16.1]} 52... Bxd1 {[%clk 0:00:03.9]} 53. Kh3
{[%clk 0:00:15.6]} 53... Bg4+ {[%clk 0:00:03.7]} 54. Kg2 {[%clk 0:00:15.8]}
54... Bb2 {[%clk 0:00:04.4]} 55. Bf2 {[%clk 0:00:15.5]} 55... h3+ {[%clk
0:00:04.9]} 56. Kg3 {[%clk 0:00:15.6]} 56... Be2 {[%clk 0:00:05.5]} 57. Be3
{[%clk 0:00:15.7]} 57... Bc4 {[%clk 0:00:06.4]} 58. Kh2 {[%clk 0:00:14.6]} 58...
Bxa2 {[%clk 0:00:06.8]} 59. Bd2 {[%clk 0:00:15]} 59... Bc4 {[%clk 0:00:07.7]}
60. Bf4 {[%clk 0:00:15.2]} 60... a2 {[%clk 0:00:07.8]} 61. Bd2 {[%clk
0:00:12.6]} 61... a1=Q {[%clk 0:00:06.4]} 62. Be3 {[%clk 0:00:10.4]} 62... Bxd4
{[%clk 0:00:05.2]} 63. Bf2 {[%clk 0:00:08.3]} 63... Bxf2 {[%clk 0:00:04.8]} 0-1

[Event "Early-Titled-Tuesday-Blitz-March-19-2024"]
[Site "Chess.com"]
[Date "2024.03.19"]
[Round "3"]
[White "carloseduar100"]
[Black "ChessWarrior3"]
[Result "0-1"]
[WhiteElo "2254"]
[BlackElo "2457"]
[TimeControl "180+1"]
[EndTime "8:30:21 PDT"]
[Termination "ChessWarrior3 won by checkmate"]

1. d4 {[%clk 0:03:00.9]} 1... d5 {[%clk 0:02:59.2]} 2. c3 {[%clk 0:02:59.2]}
2... Nf6 {[%clk 0:02:53]} 3. Bg5 {[%clk 0:02:58.8]} 3... Ne4 {[%clk 0:02:52.6]}
4. h4 {[%clk 0:02:58.4]} 4... Nxg5 {[%clk 0:02:45.9]} 5. hxg5 {[%clk 0:02:59.3]}
5... e5 {[%clk 0:02:36.8]} 6. dxe5 {[%clk 0:02:43]} 6... Qxg5 {[%clk 0:02:34.8]}
7. Nf3 {[%clk 0:02:43.9]} 7... Qd8 {[%clk 0:02:29.4]} 8. e4 {[%clk 0:02:40.7]}
8... Be6 {[%clk 0:02:14.6]} 9. exd5 {[%clk 0:02:26.6]} 9... Bxd5 {[%clk
0:02:15.5]} 10. Be2 {[%clk 0:02:25.5]} 10... Nc6 {[%clk 0:02:14.7]} 11. O-O
{[%clk 0:02:25.4]} 11... Bxf3 {[%clk 0:02:10.9]} 12. Bxf3 {[%clk 0:02:25.6]}
12... Nxe5 {[%clk 0:02:11]} 13. Bxb7 {[%clk 0:02:26.1]} 13... Qxd1 {[%clk
0:02:05.4]} 14. Rxd1 {[%clk 0:02:25.6]} 14... Rb8 {[%clk 0:02:06.3]} 15. Bd5
{[%clk 0:02:17.9]} 15... Rxb2 {[%clk 0:02:00.5]} 16. Re1 {[%clk 0:02:16.4]}
16... Kd7 {[%clk 0:01:49.4]} 17. Rxe5 {[%clk 0:02:12.1]} 17... Kd6 {[%clk
0:01:49.7]} 18. Rf5 {[%clk 0:01:46.8]} 18... g6 {[%clk 0:01:42.8]} 19. Rxf7
{[%clk 0:01:15.1]} 19... Kxd5 {[%clk 0:01:42.4]} 20. Rxc7 {[%clk 0:01:14.7]}
20... Bc5 {[%clk 0:01:41.7]} 21. Rf7 {[%clk 0:01:14.3]} 21... Rxf2 {[%clk
0:01:38.1]} 22. c4+ {[%clk 0:01:08.9]} 22... Kxc4 {[%clk 0:01:37]} 23. Rxf2
{[%clk 0:01:07]} 23... Rf8 {[%clk 0:01:35.9]} 24. Nd2+ {[%clk 0:01:07.1]} 24...
Kb4 {[%clk 0:01:27.4]} 25. Rb1+ {[%clk 0:00:57.4]} 25... Ka4 {[%clk 0:01:25]}
26. Ne4 {[%clk 0:00:54.5]} 26... Bxf2+ {[%clk 0:01:20.5]} 27. Nxf2 {[%clk
0:00:55.4]} 27... Ka3 {[%clk 0:01:21.2]} 28. Rb7 {[%clk 0:00:54.4]} 28... a5
{[%clk 0:01:17.6]} 29. Rxh7 {[%clk 0:00:54.3]} 29... Ra8 {[%clk 0:01:12.4]} 30.
Rg7 {[%clk 0:00:43.6]} 30... Ra6 {[%clk 0:01:12.2]} 31. Nd3 {[%clk 0:00:41.5]}
31... Kxa2 {[%clk 0:01:11.9]} 32. Nc5 {[%clk 0:00:41.8]} 32... Rc6 {[%clk
0:01:09.4]} 33. Nd3 {[%clk 0:00:39.7]} 33... Rd6 {[%clk 0:01:03.5]} 34. Nf4
{[%clk 0:00:39]} 34... a4 {[%clk 0:01:02.3]} 35. Ra7 {[%clk 0:00:36.2]} 35... a3
{[%clk 0:00:59.6]} 36. Kh2 {[%clk 0:00:34.7]} 36... Kb2 {[%clk 0:00:48.5]} 37.
Rb7+ {[%clk 0:00:33.6]} 37... Kc1 {[%clk 0:00:48.5]} 38. Ne2+ {[%clk 0:00:20]}
38... Kc2 {[%clk 0:00:47.7]} 39. Ra7 {[%clk 0:00:18.6]} 39... Rd3 {[%clk
0:00:42]} 40. Nf4 {[%clk 0:00:17.7]} 40... Rb3 {[%clk 0:00:40.1]} 41. Nxg6
{[%clk 0:00:17.8]} 41... Kb1 {[%clk 0:00:37.7]} 42. Ne5 {[%clk 0:00:17.4]} 42...
a2 {[%clk 0:00:36.2]} 43. g4 {[%clk 0:00:16.9]} 43... a1=Q {[%clk 0:00:33.8]}
44. Rxa1+ {[%clk 0:00:17.8]} 44... Kxa1 {[%clk 0:00:34.5]} 45. g5 {[%clk
0:00:15.9]} 45... Kb2 {[%clk 0:00:30.8]} 46. g6 {[%clk 0:00:15.9]} 46... Kc3
{[%clk 0:00:28.1]} 47. Nd7 {[%clk 0:00:14.9]} 47... Rb5 {[%clk 0:00:25.6]} 48.
Nf8 {[%clk 0:00:10.3]} 48... Rf5 {[%clk 0:00:19.8]} 49. g7 {[%clk 0:00:08.5]}
49... Rh5+ {[%clk 0:00:18.2]} 50. Kg3 {[%clk 0:00:08.8]} 50... Rg5+ {[%clk
0:00:18.9]} 51. Kf4 {[%clk 0:00:09.5]} 51... Rxg7 {[%clk 0:00:19.6]} 52. Ne6
{[%clk 0:00:10.2]} 52... Rf7+ {[%clk 0:00:19.7]} 53. Ke5 {[%clk 0:00:09.8]}
53... Rf1 {[%clk 0:00:20.4]} 54. Nf4 {[%clk 0:00:09.5]} 54... Re1+ {[%clk
0:00:20.2]} 55. Kf5 {[%clk 0:00:09.9]} 55... Kd4 {[%clk 0:00:19.8]} 56. Kg4
{[%clk 0:00:10.2]} 56... Re4 {[%clk 0:00:18.8]} 57. Kf3 {[%clk 0:00:10.3]} 57...
Re3+ {[%clk 0:00:19]} 58. Kg4 {[%clk 0:00:10.5]} 58... Re1 {[%clk 0:00:18.5]}
59. Kf3 {[%clk 0:00:10.4]} 59... Rf1+ {[%clk 0:00:18.5]} 60. Kg4 {[%clk
0:00:10.9]} 60... Ke4 {[%clk 0:00:18.4]} 61. Ne6 {[%clk 0:00:11.1]} 61... Rg1+
{[%clk 0:00:18.4]} 62. Kh5 {[%clk 0:00:11.4]} 62... Kf5 {[%clk 0:00:18.4]} 63.
Nd4+ {[%clk 0:00:11.2]} 63... Ke4 {[%clk 0:00:17.7]} 64. Ne6 {[%clk 0:00:11.3]}
64... Ke5 {[%clk 0:00:17.1]} 65. Ng5 {[%clk 0:00:04.2]} 65... Kf5 {[%clk
0:00:16.3]} 66. Nf3 {[%clk 0:00:04.1]} 66... Rh1+ {[%clk 0:00:15.6]} 67. Nh4+
{[%clk 0:00:04.2]} 67... Kf4 {[%clk 0:00:16.1]} 68. Kg6 {[%clk 0:00:04.5]} 68...
Rxh4 {[%clk 0:00:16.6]} 69. Kg7 {[%clk 0:00:04.6]} 69... Rg4+ {[%clk 0:00:16.6]}
70. Kf7 {[%clk 0:00:04.9]} 70... Kf5 {[%clk 0:00:17.2]} 71. Ke7 {[%clk
0:00:05.2]} 71... Rg6 {[%clk 0:00:17.8]} 72. Kd7 {[%clk 0:00:05.5]} 72... Re6
{[%clk 0:00:18.4]} 73. Kc7 {[%clk 0:00:05.4]} 73... Ke5 {[%clk 0:00:19.1]} 74.
Kd7 {[%clk 0:00:06.3]} 74... Rd6+ {[%clk 0:00:19]} 75. Kc7 {[%clk 0:00:07.2]}
75... Kd5 {[%clk 0:00:18.9]} 76. Kc8 {[%clk 0:00:08.1]} 76... Kc6 {[%clk
0:00:18.3]} 77. Kb8 {[%clk 0:00:08.2]} 77... Rd7 {[%clk 0:00:18.7]} 78. Kc8
{[%clk 0:00:08.4]} 78... Kd6 {[%clk 0:00:17.1]} 79. Kb8 {[%clk 0:00:08.5]} 79...
Rc7 {[%clk 0:00:17.7]} 80. Ka8 {[%clk 0:00:08.8]} 80... Kc6 {[%clk 0:00:18.4]}
81. Kb8 {[%clk 0:00:08.8]} 81... Kb6 {[%clk 0:00:19.1]} 82. Ka8 {[%clk 0:00:09]}
82... Rc8# {[%clk 0:00:20]} 0-1

[Event "Early-Titled-Tuesday-Blitz-March-19-2024"]
[Site "Chess.com"]
[Date "2024.03.19"]
[Round "3"]
[White "malakismayil"]
[Black "Hongjin"]
[Result "1-0"]
[WhiteElo "2514"]
[BlackElo "2711"]
[TimeControl "180+1"]
[EndTime "8:30:37 PDT"]
[Termination "malakismayil won by resignation"]

1. e4 {[%clk 0:03:00.9]} 1... c5 {[%clk 0:02:59.7]} 2. Nf3 {[%clk 0:03:01.3]}
2... e6 {[%clk 0:03:00]} 3. c3 {[%clk 0:03:01.4]} 3... d5 {[%clk 0:03:00]} 4.
exd5 {[%clk 0:03:01.5]} 4... exd5 {[%clk 0:03:00.9]} 5. Bb5+ {[%clk 0:03:00.9]}
5... Nc6 {[%clk 0:03:01.4]} 6. O-O {[%clk 0:03:00.7]} 6... Bd6 {[%clk
0:03:01.7]} 7. d4 {[%clk 0:02:58.6]} 7... Ne7 {[%clk 0:03:02.1]} 8. dxc5 {[%clk
0:02:54.7]} 8... Bxc5 {[%clk 0:03:03]} 9. Bg5 {[%clk 0:02:54.3]} 9... O-O {[%clk
0:03:02.8]} 10. h3 {[%clk 0:02:54.6]} 10... f6 {[%clk 0:03:02.2]} 11. Bf4 {[%clk
0:02:50.3]} 11... Ng6 {[%clk 0:02:56.2]} 12. Bg3 {[%clk 0:02:44.9]} 12... Bf5
{[%clk 0:02:28.6]} 13. Nbd2 {[%clk 0:02:39.4]} 13... Qb6 {[%clk 0:02:19.4]} 14.
a4 {[%clk 0:02:29.9]} 14... a6 {[%clk 0:02:10.8]} 15. Bxc6 {[%clk 0:02:29.5]}
15... bxc6 {[%clk 0:02:11.7]} 16. b4 {[%clk 0:02:29.5]} 16... Be7 {[%clk
0:02:09.6]} 17. Nd4 {[%clk 0:02:22]} 17... Bd7 {[%clk 0:01:59.7]} 18. a5 {[%clk
0:02:21.6]} 18... Qa7 {[%clk 0:01:52.7]} 19. Qb3 {[%clk 0:02:15.4]} 19... Ne5
{[%clk 0:01:43.1]} 20. Rfe1 {[%clk 0:02:11.3]} 20... Bd6 {[%clk 0:01:37.9]} 21.
Ne4 {[%clk 0:01:56]} 21... Be7 {[%clk 0:01:24]} 22. Nd2 {[%clk 0:01:27.9]} 22...
Kh8 {[%clk 0:01:18.1]} 23. Bxe5 {[%clk 0:01:16.2]} 23... fxe5 {[%clk 0:01:18]}
24. Rxe5 {[%clk 0:01:12.2]} 24... Bf6 {[%clk 0:01:18]} 25. N2f3 {[%clk
0:00:41.3]} 25... Bxe5 {[%clk 0:01:14.2]} 26. Nxe5 {[%clk 0:00:42.2]} 26... Rae8
{[%clk 0:01:10.9]} 27. Nd3 {[%clk 0:00:41]} 27... Qc7 {[%clk 0:01:00.4]} 28. Qc2
{[%clk 0:00:32.1]} 28... Bc8 {[%clk 0:00:54.6]} 29. Qd2 {[%clk 0:00:23.7]} 29...
Re4 {[%clk 0:00:51.7]} 30. Nc5 {[%clk 0:00:23.8]} 30... Re7 {[%clk 0:00:42.9]}
31. Qg5 {[%clk 0:00:20.5]} 31... Rfe8 {[%clk 0:00:35]} 32. Qd2 {[%clk
0:00:15.2]} 32... Qd6 {[%clk 0:00:31.7]} 33. Rf1 {[%clk 0:00:14.8]} 33... Qg6
{[%clk 0:00:29.9]} 34. Kh1 {[%clk 0:00:12.7]} 34... Re5 {[%clk 0:00:26.1]} 35.
Nd3 {[%clk 0:00:09.9]} 35... Rh5 {[%clk 0:00:18.3]} 36. Nf4 {[%clk 0:00:10]}
36... Qh6 {[%clk 0:00:18.5]} 37. Rd1 {[%clk 0:00:09.3]} 37... Rh4 {[%clk
0:00:15.2]} 38. Nfe2 {[%clk 0:00:04.1]} 38... Qf6 {[%clk 0:00:11.2]} 39. Ng3
{[%clk 0:00:03.7]} 39... g6 {[%clk 0:00:08.5]} 40. Kg1 {[%clk 0:00:02.8]} 40...
Rf4 {[%clk 0:00:08.2]} 41. Nf3 {[%clk 0:00:03]} 41... Rf8 {[%clk 0:00:07.6]} 42.
Nd4 {[%clk 0:00:03.2]} 42... Qd6 {[%clk 0:00:05.7]} 43. Rf1 {[%clk 0:00:02.5]}
43... R4f7 {[%clk 0:00:05.2]} 44. Qe3 {[%clk 0:00:03.1]} 44... Rf6 {[%clk
0:00:05.6]} 45. Qd3 {[%clk 0:00:03.6]} 45... R6f7 {[%clk 0:00:06.1]} 46. Nge2
{[%clk 0:00:04.1]} 46... Re7 {[%clk 0:00:06.7]} 47. Ng3 {[%clk 0:00:04.4]} 47...
Qe5 {[%clk 0:00:07]} 48. Nb3 {[%clk 0:00:04.4]} 48... Qe4 {[%clk 0:00:07.4]} 49.
Nxe4 {[%clk 0:00:03.6]} 49... dxe4 {[%clk 0:00:07.6]} 50. Qd4+ {[%clk
0:00:03.8]} 50... Kg8 {[%clk 0:00:07.7]} 51. Nc5 {[%clk 0:00:04.7]} 51... Bf5
{[%clk 0:00:06.5]} 52. Re1 {[%clk 0:00:04.7]} 52... Kf7 {[%clk 0:00:05.3]} 53.
Nxa6 {[%clk 0:00:05]} 53... Rfe8 {[%clk 0:00:05.2]} 54. Nc5 {[%clk 0:00:05.3]}
54... Re5 {[%clk 0:00:05.2]} 55. a6 {[%clk 0:00:05.7]} 55... Rd5 {[%clk
0:00:05.6]} 56. Qc4 {[%clk 0:00:05.7]} 56... Kf6 {[%clk 0:00:05.6]} 57. a7
{[%clk 0:00:05.9]} 57... Ra8 {[%clk 0:00:05.8]} 58. Nxe4+ {[%clk 0:00:06.1]}
58... Kg7 {[%clk 0:00:05.6]} 59. Qxc6 {[%clk 0:00:05.7]} 59... Rad8 {[%clk
0:00:04.4]} 60. Nc5 {[%clk 0:00:05.2]} 60... Rd1 {[%clk 0:00:04.2]} 61. Rxd1
{[%clk 0:00:05]} 61... Rxd1+ {[%clk 0:00:05.1]} 62. Kh2 {[%clk 0:00:05.8]} 62...
Rd8 {[%clk 0:00:04.5]} 63. a8=Q {[%clk 0:00:05.9]} 63... Rxa8 {[%clk 0:00:04.7]}
64. Qxa8 {[%clk 0:00:06.8]} 64... g5 {[%clk 0:00:04.9]} 65. Qb7+ {[%clk
0:00:07.4]} 65... Kh6 {[%clk 0:00:05.6]} 66. Qc7 {[%clk 0:00:08.1]} 66... Bg6
{[%clk 0:00:06.1]} 67. b5 {[%clk 0:00:08.1]} 67... Kh5 {[%clk 0:00:07]} 68. b6
{[%clk 0:00:08.8]} 68... g4 {[%clk 0:00:07.6]} 69. Qe5+ {[%clk 0:00:08]} 69...
Kh6 {[%clk 0:00:06.7]} 70. hxg4 {[%clk 0:00:08.6]} 70... Be4 {[%clk 0:00:06.7]}
71. Qf6+ {[%clk 0:00:07]} 71... Bg6 {[%clk 0:00:06.3]} 72. Qh4+ {[%clk
0:00:07.5]} 72... Kg7 {[%clk 0:00:06.7]} 73. Ne6+ {[%clk 0:00:08.4]} 73... Kf7
{[%clk 0:00:06.9]} 74. b7 {[%clk 0:00:07.9]} 74... Kxe6 {[%clk 0:00:07.1]} 75.
b8=Q {[%clk 0:00:08]} 75... Kd5 {[%clk 0:00:07.7]} 76. Qbd8+ {[%clk 0:00:07]}
76... Kc4 {[%clk 0:00:08.6]} 77. g5+ {[%clk 0:00:07.4]} 77... Kxc3 {[%clk
0:00:08.8]} 78. Qhd4+ {[%clk 0:00:08.1]} 78... Kb3 {[%clk 0:00:09.2]} 79. Qb8+
{[%clk 0:00:08.2]} 1-0

[Event "Early-Titled-Tuesday-Blitz-March-19-2024"]
[Site "Chess.com"]
[Date "2024.03.19"]
[Round "3"]
[White "PLAYER_2006_M"]
[Black "GlavkonVVS"]
[Result "1-0"]
[WhiteElo "2935"]
[BlackElo "2695"]
[TimeControl "180+1"]
[EndTime "8:30:56 PDT"]
[Termination "PLAYER_2006_M won on time"]

1. e4 {[%clk 0:03:00.9]} 1... Nf6 {[%clk 0:02:59.7]} 2. e5 {[%clk 0:03:00.1]}
2... Nd5 {[%clk 0:02:59.8]} 3. d4 {[%clk 0:03:00.8]} 3... d6 {[%clk 0:03:00]} 4.
Nf3 {[%clk 0:03:01.3]} 4... Bg4 {[%clk 0:02:59.6]} 5. h3 {[%clk 0:03:00.9]} 5...
Bh5 {[%clk 0:02:59.6]} 6. Be2 {[%clk 0:02:57.4]} 6... e6 {[%clk 0:02:59.8]} 7.
O-O {[%clk 0:02:57]} 7... Be7 {[%clk 0:03:00.1]} 8. Nbd2 {[%clk 0:02:53.8]} 8...
Nf4 {[%clk 0:02:54.5]} 9. Bb5+ {[%clk 0:02:32.2]} 9... c6 {[%clk 0:02:51.4]} 10.
exd6 {[%clk 0:02:23.6]} 10... Bxd6 {[%clk 0:02:42.8]} 11. Bc4 {[%clk 0:02:23.7]}
11... O-O {[%clk 0:02:39.3]} 12. Ne4 {[%clk 0:02:22.7]} 12... Bc7 {[%clk
0:02:39.1]} 13. c3 {[%clk 0:02:20.9]} 13... Nd7 {[%clk 0:02:33]} 14. Ng3 {[%clk
0:02:18.4]} 14... Bg6 {[%clk 0:02:32.4]} 15. Re1 {[%clk 0:02:18.5]} 15... Re8
{[%clk 0:02:28.4]} 16. a4 {[%clk 0:02:12]} 16... a6 {[%clk 0:02:26]} 17. a5
{[%clk 0:02:08]} 17... Nd5 {[%clk 0:02:25]} 18. Qa4 {[%clk 0:01:48.1]} 18... c5
{[%clk 0:02:09.1]} 19. Bxd5 {[%clk 0:01:42.8]} 19... exd5 {[%clk 0:02:09]} 20.
Bg5 {[%clk 0:01:32.2]} 20... f6 {[%clk 0:02:06]} 21. Bd2 {[%clk 0:01:27.8]}
21... Bxg3 {[%clk 0:00:40.1]} 22. Rxe8+ {[%clk 0:01:25.2]} 22... Bxe8 {[%clk
0:00:38.6]} 23. fxg3 {[%clk 0:01:26.1]} 23... Ne5 {[%clk 0:00:33.7]} 24. Qd1
{[%clk 0:01:24.8]} 24... cxd4 {[%clk 0:00:31.4]} 25. Nxd4 {[%clk 0:01:22]} 25...
Bg6 {[%clk 0:00:30.2]} 26. Bf4 {[%clk 0:01:16.2]} 26... Nd3 {[%clk 0:00:29.7]}
27. Qe2 {[%clk 0:01:01.3]} 27... Qd7 {[%clk 0:00:29.4]} 28. b4 {[%clk 0:00:49]}
28... Re8 {[%clk 0:00:29.4]} 29. Qd2 {[%clk 0:00:49.6]} 29... Be4 {[%clk
0:00:28]} 30. Kh2 {[%clk 0:00:44.5]} 30... g5 {[%clk 0:00:25.2]} 31. Be3 {[%clk
0:00:43.8]} 31... Bg6 {[%clk 0:00:25.6]} 32. Nb3 {[%clk 0:00:40.9]} 32... Qb5
{[%clk 0:00:23.6]} 33. Nc5 {[%clk 0:00:40.7]} 33... Qc4 {[%clk 0:00:22.3]} 34.
Nxd3 {[%clk 0:00:38.9]} 34... Qxd3 {[%clk 0:00:22.4]} 35. Qxd3 {[%clk
0:00:39.4]} 35... Bxd3 {[%clk 0:00:23]} 36. Bd4 {[%clk 0:00:37.1]} 36... Re6
{[%clk 0:00:23]} 37. Rd1 {[%clk 0:00:37.3]} 37... Be4 {[%clk 0:00:22.6]} 38. Kg1
{[%clk 0:00:36.3]} 38... Kf7 {[%clk 0:00:23.2]} 39. Kf2 {[%clk 0:00:37]} 39...
Kg6 {[%clk 0:00:23.7]} 40. Rd2 {[%clk 0:00:36.9]} 40... f5 {[%clk 0:00:24.1]}
41. Rb2 {[%clk 0:00:34.2]} 41... Bd3 {[%clk 0:00:23]} 42. Rd2 {[%clk 0:00:34.3]}
42... Bc4 {[%clk 0:00:23.4]} 43. Be3 {[%clk 0:00:34.9]} 43... h6 {[%clk
0:00:23.3]} 44. Rd4 {[%clk 0:00:34.9]} 44... Re4 {[%clk 0:00:23.5]} 45. Rd1
{[%clk 0:00:35.3]} 45... Kf6 {[%clk 0:00:23.4]} 46. Rd2 {[%clk 0:00:28.3]} 46...
Ke6 {[%clk 0:00:21.7]} 47. Bd4 {[%clk 0:00:27.8]} 47... f4 {[%clk 0:00:21.3]}
48. gxf4 {[%clk 0:00:28.2]} 48... Rxf4+ {[%clk 0:00:21.7]} 49. Kg3 {[%clk
0:00:28.8]} 49... Kf5 {[%clk 0:00:21.3]} 50. Be3 {[%clk 0:00:25.8]} 50... Re4
{[%clk 0:00:20.1]} 51. Rf2+ {[%clk 0:00:26.2]} 51... Kg6 {[%clk 0:00:20]} 52.
Bd4 {[%clk 0:00:26.8]} 52... Re6 {[%clk 0:00:20.4]} 53. h4 {[%clk 0:00:25.2]}
53... gxh4+ {[%clk 0:00:19.3]} 54. Kxh4 {[%clk 0:00:25.3]} 54... Re4+ {[%clk
0:00:19.4]} 55. Kg3 {[%clk 0:00:24.8]} 55... Re6 {[%clk 0:00:20]} 56. Rf8 {[%clk
0:00:25]} 56... h5 {[%clk 0:00:18.1]} 57. Rg8+ {[%clk 0:00:23.2]} 57... Kf5
{[%clk 0:00:18.3]} 58. Kh4 {[%clk 0:00:20.5]} 58... Be2 {[%clk 0:00:17.2]} 59.
Rg7 {[%clk 0:00:18.7]} 59... Rg6 {[%clk 0:00:14.4]} 60. Rxb7 {[%clk 0:00:09.9]}
60... Rxg2 {[%clk 0:00:14.1]} 61. Re7 {[%clk 0:00:09.1]} 61... Bf3 {[%clk
0:00:11.9]} 62. Rf7+ {[%clk 0:00:05.8]} 62... Ke4 {[%clk 0:00:11.9]} 63. b5
{[%clk 0:00:05.3]} 63... axb5 {[%clk 0:00:09.9]} 64. a6 {[%clk 0:00:05.4]} 64...
Rh2+ {[%clk 0:00:10.2]} 65. Kg3 {[%clk 0:00:05.1]} 65... Rg2+ {[%clk 0:00:10]}
66. Kh3 {[%clk 0:00:05.7]} 66... Ra2 {[%clk 0:00:08.8]} 67. a7 {[%clk
0:00:06.1]} 67... b4 {[%clk 0:00:06.1]} 68. Re7+ {[%clk 0:00:06.6]} 68... Kf4
{[%clk 0:00:05]} 69. Be3+ {[%clk 0:00:05]} 69... Kf5 {[%clk 0:00:04.9]} 70. cxb4
{[%clk 0:00:05.5]} 70... Bg4+ {[%clk 0:00:03.8]} 71. Kg3 {[%clk 0:00:05.3]}
71... Ra3 {[%clk 0:00:04]} 72. Re8 {[%clk 0:00:05.3]} 72... d4 {[%clk 0:00:04]}
73. a8=Q {[%clk 0:00:05.6]} 73... Rxa8 {[%clk 0:00:04.1]} 74. Rxa8 {[%clk
0:00:06.5]} 74... dxe3 {[%clk 0:00:04.8]} 75. Re8 {[%clk 0:00:07.2]} 75... e2
{[%clk 0:00:05]} 76. b5 {[%clk 0:00:06.3]} 76... Kg5 {[%clk 0:00:05.3]} 77. b6
{[%clk 0:00:05.3]} 77... h4+ {[%clk 0:00:05.6]} 78. Kf2 {[%clk 0:00:05.1]} 78...
h3 {[%clk 0:00:04.2]} 79. b7 {[%clk 0:00:05.5]} 79... h2 {[%clk 0:00:03.9]} 80.
Kg2 {[%clk 0:00:04]} 80... Kf4 {[%clk 0:00:01.4]} 81. Kxh2 {[%clk 0:00:03.9]}
81... Bf3 {[%clk 0:00:01.9]} 82. b8=Q+ {[%clk 0:00:04.2]} 1-0